[Event "NJSK 2024 A"]
[Site "Groningen, Netherlands"]
[Date "2024.05.02"]
[Round "6.4"]
[White "Khatniuk, Anastasiia"]
[Black "Moskalets, Sofiia"]
[Result "0-1"]
[TimeControl "90min/40moves + 30min + 30sec/move"]
[WhiteElo "2012"]
[BlackElo "2050"]

1. e4 {[%clk 01:30:58]} {[%emt 00:00:02]} c5 {[%clk 01:30:55]} {[%emt
00:00:06]} 2. Nf3 {[%clk 01:31:22]} {[%emt 00:00:05]} Nc6 {[%clk 01:31:18]}
{[%emt 00:00:08]} 3. Bb5 {[%clk 01:28:44]} {[%emt 00:03:08]} e5 {[%clk
01:31:41]} {[%emt 00:00:07]} 4. O-O {[%clk 01:28:43]} {[%emt 00:00:31]} Bd6
{[%clk 01:32:05]} {[%emt 00:00:06]} 5. c3 {[%clk 01:28:22]} {[%emt 00:00:50]}
a6 {[%clk 01:32:25]} {[%emt 00:00:11]} 6. Bxc6 {[%clk 01:26:49]} {[%emt
00:02:03]} dxc6 {[%clk 01:32:45]} {[%emt 00:00:10]} 7. d4 {[%clk 01:26:39]}
{[%emt 00:00:40]} exd4 {[%clk 01:32:15]} {[%emt 00:01:01]} 8. cxd4 {[%clk
01:26:26]} {[%emt 00:00:42]} Bg4 {[%clk 01:32:25]} {[%emt 00:00:19]} 9. dxc5
{[%clk 01:22:39]} {[%emt 00:04:18]} Bxc5 {[%clk 01:30:44]} {[%emt 00:02:12]} 10.
Qb3 {[%clk 01:21:22]} {[%emt 00:01:47]} Qb6 {[%clk 01:19:28]} {[%emt 00:11:46]}
11. Nbd2 {[%clk 01:18:29]} {[%emt 00:03:22]} Nf6 {[%clk 01:14:13]} {[%emt
00:05:46]} 12. Qxb6 {[%clk 01:12:24]} {[%emt 00:06:35]} Bxb6 {[%clk 01:14:37]}
{[%emt 00:00:07]} 13. Nc4 {[%clk 01:10:35]} {[%emt 00:02:17]} Bc7 {[%clk
01:12:22]} {[%emt 00:02:45]} 14. Bg5 {[%clk 01:05:39]} {[%emt 00:05:26]} Nd7
{[%clk 01:03:10]} {[%emt 00:09:43]} 15. Nd4 {[%clk 01:03:21]} {[%emt 00:02:47]}
Ne5 {[%clk 00:47:46]} {[%emt 00:15:55]} 16. Ne3 {[%clk 01:01:33]} {[%emt
00:02:17]} Bd7 {[%clk 00:43:40]} {[%emt 00:04:36]} 17. Rad1 {[%clk 00:52:15]}
{[%emt 00:09:49]} f6 {[%clk 00:40:49]} {[%emt 00:03:21]} 18. Bh4 {[%clk
00:51:31]} {[%emt 00:01:13]} O-O-O {[%clk 00:31:58]} {[%emt 00:09:21]} 19. Ndf5
{[%clk 00:47:15]} {[%emt 00:04:47]} Bxf5 {[%clk 00:27:08]} {[%emt 00:05:20]} 20.
Nxf5 {[%clk 00:47:12]} {[%emt 00:00:32]} g5 {[%clk 00:26:53]} {[%emt 00:00:45]}
21. Bg3 {[%clk 00:47:11]} {[%emt 00:00:31]} Nc4 {[%clk 00:23:20]} {[%emt
00:04:03]} 22. Rc1 {[%clk 00:34:19]} {[%emt 00:13:23]} Bxg3 {[%clk 00:18:47]}
{[%emt 00:05:03]} 23. Rxc4 {[%clk 00:30:15]} {[%emt 00:04:34]} Be5 {[%clk
00:18:59]} {[%emt 00:00:17]} 24. Rc2 {[%clk 00:30:28]} {[%emt 00:00:17]} Rd3
{[%clk 00:18:08]} {[%emt 00:01:22]} 25. g3 {[%clk 00:29:41]} {[%emt 00:01:17]}
Rhd8 {[%clk 00:16:40]} {[%emt 00:01:58]} 26. Re1 {[%clk 00:24:16]} {[%emt
00:05:55]} Rd2 {[%clk 00:12:42]} {[%emt 00:04:27]} 27. Re2 {[%clk 00:24:34]}
{[%emt 00:00:11]} Rxe2 {[%clk 00:12:59]} {[%emt 00:00:13]} 28. Rxe2 {[%clk
00:24:59]} {[%emt 00:00:05]} Rd1+ {[%clk 00:12:42]} {[%emt 00:00:48]} 29. Kg2
{[%clk 00:25:24]} {[%emt 00:00:04]} Rb1 {[%clk 00:12:16]} {[%emt 00:00:56]} 30.
b3 {[%clk 00:25:41]} {[%emt 00:00:13]} Kc7 {[%clk 00:10:47]} {[%emt 00:01:59]}
31. h4 {[%clk 00:19:31]} {[%emt 00:06:40]} b5 {[%clk 00:08:06]} {[%emt
00:03:11]} 32. hxg5 {[%clk 00:17:04]} {[%emt 00:02:57]} fxg5 {[%clk 00:08:31]}
{[%emt 00:00:06]} 33. Kf3 {[%clk 00:17:17]} {[%emt 00:00:16]} h5 {[%clk
00:08:03]} {[%emt 00:00:58]} 34. Nh6 {[%clk 00:17:01]} {[%emt 00:00:45]} h4
{[%clk 00:05:32]} {[%emt 00:03:02]} 35. Nf7 {[%clk 00:12:00]} {[%emt 00:05:30]}
h3 {[%clk 00:05:25]} {[%emt 00:00:38]} 0-1

[Event "NJSK 2024 A"]
[Site "Groningen, Netherlands"]
[Date "2024.05.02"]
[Round "6.5"]
[White "Van Hesselingen, Guido"]
[Black "Wiersma, Camiel"]
[Result "1-0"]
[TimeControl "90min/40moves + 30min + 30sec/move"]
[WhiteElo "2016"]
[BlackElo "1963"]

1. e4 {[%clk 01:30:56]} {[%emt 00:00:03]} c5 {[%clk 01:30:56]} {[%emt
00:00:05]} 2. Nf3 {[%clk 01:31:02]} {[%emt 00:00:24]} Nc6 {[%clk 01:31:18]}
{[%emt 00:00:07]} 3. d4 {[%clk 01:31:29]} {[%emt 00:00:03]} cxd4 {[%clk
01:31:42]} {[%emt 00:00:07]} 4. Nxd4 {[%clk 01:31:54]} {[%emt 00:00:04]} Nf6
{[%clk 01:32:07]} {[%emt 00:00:06]} 5. Nc3 {[%clk 01:32:21]} {[%emt 00:00:03]}
e5 {[%clk 01:32:32]} {[%emt 00:00:04]} 6. Ndb5 {[%clk 01:32:39]} {[%emt
00:00:12]} d6 {[%clk 01:32:54]} {[%emt 00:00:08]} 7. Bg5 {[%clk 01:32:55]}
{[%emt 00:00:14]} a6 {[%clk 01:33:20]} {[%emt 00:00:05]} 8. Na3 {[%clk
01:33:20]} {[%emt 00:00:04]} b5 {[%clk 01:33:48]} {[%emt 00:00:03]} 9. Nd5
{[%clk 01:33:26]} {[%emt 00:00:23]} Be7 {[%clk 01:34:12]} {[%emt 00:00:07]} 10.
Bxf6 {[%clk 01:33:46]} {[%emt 00:00:10]} Bxf6 {[%clk 01:34:35]} {[%emt
00:00:07]} 11. c3 {[%clk 01:34:09]} {[%emt 00:00:07]} Bg5 {[%clk 01:35:00]}
{[%emt 00:00:04]} 12. Nc2 {[%clk 01:34:18]} {[%emt 00:00:20]} O-O {[%clk
01:35:23]} {[%emt 00:00:07]} 13. a4 {[%clk 01:34:28]} {[%emt 00:00:21]} bxa4
{[%clk 01:35:32]} {[%emt 00:00:21]} 14. Rxa4 {[%clk 01:34:52]} {[%emt
00:00:06]} a5 {[%clk 01:35:57]} {[%emt 00:00:05]} 15. Bc4 {[%clk 01:33:39]}
{[%emt 00:01:43]} Kh8 {[%clk 01:36:13]} {[%emt 00:00:14]} 16. O-O {[%clk
01:21:24]} {[%emt 00:12:45]} g6 {[%clk 01:36:19]} {[%emt 00:00:24]} 17. Kh1
{[%clk 01:15:58]} {[%emt 00:05:56]} Rb8 {[%clk 01:27:35]} {[%emt 00:09:15]} 18.
b3 {[%clk 01:13:44]} {[%emt 00:02:44]} Be6 {[%clk 01:22:38]} {[%emt 00:05:26]}
19. Qd3 {[%clk 01:03:10]} {[%emt 00:11:04]} f5 {[%clk 01:20:33]} {[%emt
00:02:35]} 20. exf5 {[%clk 01:02:45]} {[%emt 00:00:55]} gxf5 {[%clk 01:19:45]}
{[%emt 00:01:17]} 21. f4 {[%clk 01:02:26]} {[%emt 00:00:49]} Bh6 {[%clk
00:58:31]} {[%emt 00:21:45]} 22. Nce3 {[%clk 00:57:37]} {[%emt 00:05:19]} Rb7
{[%clk 00:30:07]} {[%emt 00:28:54]} 23. g3 {[%clk 00:36:01]} {[%emt 00:22:06]}
Bg7 {[%clk 00:23:07]} {[%emt 00:07:30]} 24. Bb5 {[%clk 00:24:01]} {[%emt
00:12:30]} Na7 {[%clk 00:20:22]} {[%emt 00:03:15]} 25. Bc4 {[%clk 00:23:11]}
{[%emt 00:01:20]} e4 {[%clk 00:18:45]} {[%emt 00:02:07]} 26. Qd2 {[%clk
00:22:35]} {[%emt 00:01:06]} Bd7 {[%clk 00:15:31]} {[%emt 00:03:45]} 27. Ra3
{[%clk 00:22:04]} {[%emt 00:01:01]} Nb5 {[%clk 00:12:24]} {[%emt 00:03:37]} 28.
Ra2 {[%clk 00:21:56]} {[%emt 00:00:37]} Ra7 {[%clk 00:04:46]} {[%emt 00:08:09]}
29. Bxb5 {[%clk 00:16:12]} {[%emt 00:06:14]} Bxb5 {[%clk 00:05:14]} {[%emt
00:00:01]} 30. c4 {[%clk 00:16:36]} {[%emt 00:00:06]} Bc6 {[%clk 00:05:00]}
{[%emt 00:00:44]} 31. b4 {[%clk 00:16:49]} {[%emt 00:00:17]} Ra8 {[%clk
00:01:02]} {[%emt 00:04:28]} 32. bxa5 {[%clk 00:13:06]} {[%emt 00:04:13]} Rf7
{[%clk 00:00:47]} {[%emt 00:00:45]} 33. Nb6 {[%clk 00:13:10]} {[%emt 00:00:26]}
Rb8 {[%clk 00:00:43]} {[%emt 00:00:35]} 34. Rd1 {[%clk 00:12:54]} {[%emt
00:00:45]} Rxb6 {[%clk 00:00:49]} {[%emt 00:00:25]} 35. axb6 {[%clk 00:12:57]}
{[%emt 00:00:26]} Qxb6 {[%clk 00:01:18]} {[%emt 00:00:01]} 36. Ra3 {[%clk
00:08:39]} {[%emt 00:04:48]} Bf6 {[%clk 00:00:37]} {[%emt 00:01:11]} 37. Qxd6
{[%clk 00:07:31]} {[%emt 00:01:39]} Be7 {[%clk 00:00:42]} {[%emt 00:00:25]} 38.
Ra8+ {[%clk 00:06:27]} {[%emt 00:01:34]} Kg7 {[%clk 00:00:50]} {[%emt
00:00:21]} 39. Nxf5+ {[%clk 00:06:24]} {[%emt 00:00:33]} Rxf5 {[%clk 00:01:20]}
40. Qxe7+ {[%clk 00:06:43]} {[%emt 00:00:11]} Kg6 {[%clk 00:00:35]} {[%emt
00:01:15]} 41. Rd6+ {[%clk 00:06:49]} {[%emt 00:00:24]} Kh5 {[%clk 00:00:39]}
{[%emt 00:00:26]} 42. Qh4# {[%clk 00:06:42]} {[%emt 00:00:05]} 1-0

[Event "NJSK 2024 A"]
[Site "Groningen, Netherlands"]
[Date "2024.05.02"]
[Round "6.6"]
[White "Leorato, Imanol"]
[Black "Ramak, Vince"]
[Result "0-1"]
[TimeControl "90min/40moves + 30min + 30sec/move"]
[WhiteElo "1837"]
[BlackElo "1902"]

1. e4 {[%clk 01:30:48]} {[%emt 00:00:11]} Nf6 {[%clk 01:30:53]} {[%emt
00:00:07]} 2. e5 {[%clk 01:30:48]} {[%emt 00:00:30]} Nd5 {[%clk 01:31:17]}
{[%emt 00:00:06]} 3. c4 {[%clk 01:30:48]} {[%emt 00:00:30]} Nb6 {[%clk
01:31:41]} {[%emt 00:00:07]} 4. d4 {[%clk 01:30:56]} {[%emt 00:00:22]} d6
{[%clk 01:32:05]} {[%emt 00:00:06]} 5. exd6 {[%clk 01:30:24]} {[%emt 00:01:00]}
cxd6 {[%clk 01:32:30]} {[%emt 00:00:06]} 6. Nc3 {[%clk 01:30:35]} {[%emt
00:00:18]} g6 {[%clk 01:32:54]} {[%emt 00:00:06]} 7. Be3 {[%clk 01:28:55]}
{[%emt 00:02:10]} Bg7 {[%clk 01:33:17]} {[%emt 00:00:08]} 8. Nf3 {[%clk
01:29:15]} {[%emt 00:00:10]} O-O {[%clk 01:33:38]} {[%emt 00:00:09]} 9. Be2
{[%clk 01:29:23]} {[%emt 00:00:21]} Nc6 {[%clk 01:33:59]} {[%emt 00:00:10]} 10.
O-O {[%clk 01:29:19]} {[%emt 00:00:34]} Bg4 {[%clk 01:34:23]} {[%emt 00:00:06]}
11. b3 {[%clk 01:29:38]} {[%emt 00:00:10]} d5 {[%clk 01:34:41]} {[%emt
00:00:12]} 12. c5 {[%clk 01:29:33]} {[%emt 00:00:35]} Nc8 {[%clk 01:35:04]}
{[%emt 00:00:08]} 13. h3 {[%clk 01:29:14]} {[%emt 00:00:48]} Bxf3 {[%clk
01:35:27]} {[%emt 00:00:07]} 14. Bxf3 {[%clk 01:29:34]} {[%emt 00:00:09]} e6
{[%clk 01:35:52]} {[%emt 00:00:06]} 15. Qd2 {[%clk 01:28:21]} {[%emt 00:01:43]}
N8e7 {[%clk 01:36:12]} {[%emt 00:00:10]} 16. Ne2 {[%clk 01:28:20]} {[%emt
00:00:30]} Nf5 {[%clk 01:36:24]} {[%emt 00:00:19]} 17. Bg4 {[%clk 01:24:48]}
{[%emt 00:04:02]} Nxe3 {[%clk 01:31:11]} {[%emt 00:05:43]} 18. Qxe3 {[%clk
01:23:35]} {[%emt 00:01:43]} h5 {[%clk 01:28:21]} {[%emt 00:03:20]} 19. Bf3
{[%clk 01:23:03]} {[%emt 00:01:02]} a5 {[%clk 01:26:17]} {[%emt 00:02:34]} 20.
g3 {[%clk 01:21:19]} {[%emt 00:02:14]} a4 {[%clk 01:21:23]} {[%emt 00:05:25]}
21. b4 {[%clk 01:19:17]} {[%emt 00:02:32]} Qf6 {[%clk 01:17:37]} {[%emt
00:04:15]} 22. Rfd1 {[%clk 01:17:17]} {[%emt 00:02:30]} Nxb4 {[%clk 01:13:58]}
{[%emt 00:04:11]} 23. Rab1 {[%clk 01:17:27]} {[%emt 00:00:19]} Nc6 {[%clk
01:13:51]} {[%emt 00:00:36]} 24. Rxb7 {[%clk 01:15:52]} {[%emt 00:02:06]} Rfb8
{[%clk 01:13:53]} {[%emt 00:00:29]} 25. Rc7 {[%clk 01:13:26]} {[%emt 00:02:56]}
Rc8 {[%clk 01:14:04]} {[%emt 00:00:18]} 26. Rxc8+ {[%clk 01:13:41]} {[%emt
00:00:15]} Rxc8 {[%clk 01:14:28]} {[%emt 00:00:06]} 27. Kg2 {[%clk 01:14:04]}
{[%emt 00:00:07]} Rb8 {[%clk 01:11:12]} {[%emt 00:03:46]} 28. Qd3 {[%clk
01:12:18]} {[%emt 00:02:16]} Rb4 {[%clk 01:00:34]} {[%emt 00:11:08]} 29. Qa6
{[%clk 01:12:04]} {[%emt 00:00:44]} Nxd4 {[%clk 00:58:43]} {[%emt 00:02:21]} 30.
Nxd4 {[%clk 01:12:20]} {[%emt 00:00:14]} Rxd4 {[%clk 00:59:08]} {[%emt
00:00:05]} 31. Rxd4 {[%clk 01:12:32]} {[%emt 00:00:19]} Qxd4 {[%clk 00:59:31]}
{[%emt 00:00:06]} 32. Qc8+ {[%clk 01:08:57]} {[%emt 00:04:05]} Bf8 {[%clk
00:58:00]} {[%emt 00:02:01]} 33. c6 {[%clk 01:09:02]} {[%emt 00:00:25]} Kg7
{[%clk 00:58:22]} {[%emt 00:00:08]} 34. Qd7 {[%clk 01:08:41]} {[%emt 00:00:50]}
Bc5 {[%clk 00:58:02]} {[%emt 00:00:51]} 0-1

[Event "NJSK 2024 A"]
[Site "Groningen, Netherlands"]
[Date "2024.05.02"]
[Round "6.7"]
[White "Klugstedt, Vincent"]
[Black "Van de Poel, Jona"]
[Result "1-0"]
[TimeControl "90min/40moves + 30min + 30sec/move"]
[WhiteElo "1913"]
[BlackElo "1865"]

1. d4 {[%clk 01:30:57]} {[%emt 00:00:02]} Nf6 {[%clk 01:30:53]} {[%emt
00:00:07]} 2. c4 {[%clk 01:31:18]} {[%emt 00:00:10]} e5 {[%clk 01:31:15]}
{[%emt 00:00:07]} 3. dxe5 {[%clk 01:30:49]} {[%emt 00:01:00]} Ng4 {[%clk
01:31:15]} {[%emt 00:00:30]} 4. e4 {[%clk 01:30:48]} {[%emt 00:00:30]} Nxe5
{[%clk 01:31:38]} {[%emt 00:00:07]} 5. f4 {[%clk 01:31:03]} {[%emt 00:00:15]}
Nec6 {[%clk 01:32:02]} {[%emt 00:00:05]} 6. Be3 {[%clk 01:31:00]} {[%emt
00:00:33]} Bb4+ {[%clk 01:32:25]} {[%emt 00:00:07]} 7. Nd2 {[%clk 01:28:48]}
{[%emt 00:02:43]} d6 {[%clk 01:32:37]} {[%emt 00:00:18]} 8. a3 {[%clk
01:26:42]} {[%emt 00:02:37]} Bc5 {[%clk 01:26:44]} {[%emt 00:06:22]} 9. Bxc5
{[%clk 01:17:54]} {[%emt 00:09:17]} dxc5 {[%clk 01:26:35]} {[%emt 00:00:40]} 10.
Ndf3 {[%clk 01:17:15]} {[%emt 00:01:09]} Nd4 {[%clk 01:17:06]} {[%emt
00:09:59]} 11. Nxd4 {[%clk 01:11:52]} {[%emt 00:05:53]} cxd4 {[%clk 01:16:26]}
{[%emt 00:01:09]} 12. Nf3 {[%clk 01:11:18]} {[%emt 00:01:05]} c5 {[%clk
01:15:49]} {[%emt 00:01:06]} 13. Bd3 {[%clk 01:10:51]} {[%emt 00:00:57]} Nc6
{[%clk 01:12:19]} {[%emt 00:04:01]} 14. O-O {[%clk 01:10:32]} {[%emt 00:00:48]}
O-O {[%clk 01:10:46]} {[%emt 00:02:04]} 15. Qc2 {[%clk 01:09:32]} {[%emt
00:01:30]} a5 {[%clk 01:05:08]} {[%emt 00:06:08]} 16. e5 {[%clk 01:05:23]}
{[%emt 00:04:39]} g6 {[%clk 00:59:56]} {[%emt 00:05:42]} 17. f5 {[%clk
01:04:11]} {[%emt 00:01:42]} Ne7 {[%clk 00:47:58]} {[%emt 00:12:29]} 18. g4
{[%clk 00:59:00]} {[%emt 00:05:39]} Kh8 {[%clk 00:41:55]} {[%emt 00:06:34]} 19.
Rae1 {[%clk 00:55:32]} {[%emt 00:03:59]} gxf5 {[%clk 00:39:21]} {[%emt
00:03:03]} 20. gxf5 {[%clk 00:55:12]} {[%emt 00:00:50]} f6 {[%clk 00:37:26]}
{[%emt 00:02:25]} 21. e6 {[%clk 00:46:51]} {[%emt 00:08:52]} Qc7 {[%clk
00:34:56]} {[%emt 00:02:58]} 22. Qd2 {[%clk 00:45:01]} {[%emt 00:02:21]} b6
{[%clk 00:33:15]} {[%emt 00:02:12]} 23. Kf2 {[%clk 00:41:58]} {[%emt 00:03:32]}
Bb7 {[%clk 00:28:41]} {[%emt 00:05:04]} 24. Rg1 {[%clk 00:41:32]} {[%emt
00:00:55]} Rg8 {[%clk 00:24:54]} {[%emt 00:04:18]} 25. Rxg8+ {[%clk 00:35:53]}
{[%emt 00:06:09]} Nxg8 {[%clk 00:23:04]} {[%emt 00:02:20]} 26. Be4 {[%clk
00:35:21]} {[%emt 00:01:02]} Bxe4 {[%clk 00:21:59]} {[%emt 00:01:35]} 27. Rxe4
{[%clk 00:35:48]} {[%emt 00:00:04]} Qg7 {[%clk 00:20:33]} {[%emt 00:01:56]} 28.
h3 {[%clk 00:30:04]} {[%emt 00:06:13]} Nh6 {[%clk 00:16:00]} {[%emt 00:05:03]}
29. e7 {[%clk 00:22:29]} {[%emt 00:08:06]} Re8 {[%clk 00:16:10]} {[%emt
00:00:19]} 30. Nh4 {[%clk 00:21:44]} {[%emt 00:01:16]} Ng8 {[%clk 00:12:58]}
{[%emt 00:03:43]} 31. Ng6+ {[%clk 00:18:02]} {[%emt 00:04:10]} hxg6 {[%clk
00:12:52]} {[%emt 00:00:37]} 32. Rh4+ {[%clk 00:18:26]} {[%emt 00:00:06]} Qh7
{[%clk 00:12:50]} {[%emt 00:00:32]} 33. Rxh7+ {[%clk 00:18:37]} {[%emt
00:00:20]} Kxh7 {[%clk 00:13:12]} {[%emt 00:00:07]} 34. fxg6+ {[%clk 00:18:20]}
{[%emt 00:00:46]} Kxg6 {[%clk 00:13:19]} {[%emt 00:00:24]} 35. Qf4 {[%clk
00:15:32]} {[%emt 00:03:18]} Nxe7 {[%clk 00:11:25]} {[%emt 00:02:24]} 36. Qd6
{[%clk 00:15:08]} {[%emt 00:00:53]} Nc8 {[%clk 00:11:21]} {[%emt 00:00:36]} 37.
Qd7 {[%clk 00:15:06]} {[%emt 00:00:31]} Rg8 {[%clk 00:10:51]} {[%emt 00:00:59]}
38. Kf3 {[%clk 00:14:34]} {[%emt 00:01:01]} Rh8 {[%clk 00:10:17]} {[%emt
00:01:03]} 39. Kg4 {[%clk 00:14:22]} {[%emt 00:00:44]} Rf8 {[%clk 00:09:57]}
{[%emt 00:00:50]} 40. h4 {[%clk 00:13:07]} {[%emt 00:01:46]} f5+ {[%clk
00:09:34]} {[%emt 00:00:53]} 41. Kf4 {[%clk 00:12:50]} {[%emt 00:00:47]} Kf6
{[%clk 00:08:21]} {[%emt 00:01:44]} 42. h5 {[%clk 00:11:35]} {[%emt 00:01:44]}
a4 {[%clk 00:06:18]} {[%emt 00:02:33]} 43. Qc6+ {[%clk 00:30:04]} {[%emt
00:12:01]} Ke7 {[%clk 00:36:14]} {[%emt 00:00:34]} 44. Ke5 {[%clk 00:26:24]}
{[%emt 00:04:09]} Rd8 {[%clk 00:34:42]} {[%emt 00:02:03]} 45. Qe6+ {[%clk
00:21:22]} {[%emt 00:05:31]} Kf8 {[%clk 00:35:03]} {[%emt 00:00:10]} 46. Qxf5+
{[%clk 00:17:49]} {[%emt 00:04:03]} Ke8 {[%clk 00:35:02]} {[%emt 00:00:31]} 47.
Qe6+ {[%clk 00:17:03]} {[%emt 00:01:14]} Kf8 {[%clk 00:35:24]} {[%emt
00:00:08]} 48. h6 {[%clk 00:15:24]} {[%emt 00:02:11]} Re8 {[%clk 00:35:32]}
{[%emt 00:00:22]} 49. Qxe8+ {[%clk 00:14:48]} {[%emt 00:01:06]} Kxe8 {[%clk
00:35:57]} {[%emt 00:00:04]} 50. h7 {[%clk 00:15:12]} {[%emt 00:00:07]} Kd7
{[%clk 00:35:25]} {[%emt 00:01:01]} 51. h8=Q {[%clk 00:15:26]} {[%emt
00:00:16]} Kc7 {[%clk 00:35:41]} {[%emt 00:00:15]} 52. Qe8 {[%clk 00:14:51]}
{[%emt 00:01:03]} 1-0

[Event "NJSK 2024 A"]
[Site "Groningen, Netherlands"]
[Date "2024.05.03"]
[Round "7.1"]
[White "Moskalets, Sofiia"]
[Black "Smid, Jelle"]
[Result "1-0"]
[TimeControl "90min/40moves + 30min + 30sec/move"]
[WhiteElo "2050"]
[BlackElo "1917"]

1. e4 {[%clk 01:30:57]} {[%emt 00:00:03]} e5 {[%clk 01:30:52]} {[%emt
00:00:09]} 2. Nf3 {[%clk 01:31:03]} {[%emt 00:00:24]} Nc6 {[%clk 01:31:15]}
{[%emt 00:00:07]} 3. Bb5 {[%clk 01:31:26]} {[%emt 00:00:07]} a6 {[%clk
01:31:37]} {[%emt 00:00:07]} 4. Ba4 {[%clk 01:31:52]} {[%emt 00:00:05]} Nf6
{[%clk 01:31:58]} {[%emt 00:00:09]} 5. d3 {[%clk 01:32:15]} {[%emt 00:00:07]}
Bc5 {[%clk 01:32:18]} {[%emt 00:00:10]} 6. Bxc6 {[%clk 01:31:37]} {[%emt
00:01:08]} dxc6 {[%clk 01:32:41]} {[%emt 00:00:07]} 7. Qe2 {[%clk 01:31:40]}
{[%emt 00:00:27]} Qe7 {[%clk 01:30:37]} {[%emt 00:02:34]} 8. Nc3 {[%clk
01:30:45]} {[%emt 00:01:24]} Nd7 {[%clk 01:24:18]} {[%emt 00:06:49]} 9. Bg5
{[%clk 01:27:39]} {[%emt 00:03:36]} f6 {[%clk 01:24:15]} {[%emt 00:00:34]} 10.
Bd2 {[%clk 01:28:00]} {[%emt 00:00:09]} Nf8 {[%clk 01:22:57]} {[%emt 00:01:48]}
11. O-O-O {[%clk 01:17:32]} {[%emt 00:10:58]} Ne6 {[%clk 01:19:54]} {[%emt
00:03:33]} 12. Be3 {[%clk 01:08:28]} {[%emt 00:09:34]} Nd4 {[%clk 01:02:17]}
{[%emt 00:18:06]} 13. Qd2 {[%clk 01:01:55]} {[%emt 00:07:03]} Be6 {[%clk
00:58:45]} {[%emt 00:04:02]} 14. Bxd4 {[%clk 00:45:23]} {[%emt 00:17:03]} exd4
{[%clk 00:59:00]} {[%emt 00:00:14]} 15. Ne2 {[%clk 00:45:27]} {[%emt 00:00:26]}
O-O-O {[%clk 00:57:43]} {[%emt 00:01:47]} 16. Kb1 {[%clk 00:45:30]} {[%emt
00:00:27]} Bb4 {[%clk 00:49:17]} {[%emt 00:08:57]} 17. c3 {[%clk 00:35:47]}
{[%emt 00:10:13]} dxc3 {[%clk 00:49:31]} {[%emt 00:00:16]} 18. Nxc3 {[%clk
00:35:25]} {[%emt 00:00:51]} Kb8 {[%clk 00:48:03]} {[%emt 00:01:58]} 19. Qc2
{[%clk 00:33:16]} {[%emt 00:02:39]} Rhe8 {[%clk 00:35:12]} {[%emt 00:13:21]} 20.
Rhe1 {[%clk 00:24:53]} {[%emt 00:08:54]} Bg4 {[%clk 00:33:49]} {[%emt
00:01:52]} 21. d4 {[%clk 00:20:29]} {[%emt 00:04:55]} Qf7 {[%clk 00:28:59]}
{[%emt 00:05:19]} 22. Rd3 {[%clk 00:15:46]} {[%emt 00:05:13]} Qg6 {[%clk
00:27:00]} {[%emt 00:02:29]} 23. Nd2 {[%clk 00:15:18]} {[%emt 00:00:58]} Bc8
{[%clk 00:24:41]} {[%emt 00:02:48]} 24. g3 {[%clk 00:13:01]} {[%emt 00:02:47]}
f5 {[%clk 00:20:46]} {[%emt 00:04:25]} 25. f3 {[%clk 00:12:36]} {[%emt
00:00:56]} fxe4 {[%clk 00:18:29]} {[%emt 00:02:47]} 26. fxe4 {[%clk 00:12:59]}
{[%emt 00:00:07]} Rf8 {[%clk 00:18:51]} {[%emt 00:00:08]} 27. Nc4 {[%clk
00:10:53]} {[%emt 00:02:35]} Qh5 {[%clk 00:16:47]} {[%emt 00:02:34]} 28. Ne5
{[%clk 00:09:04]} {[%emt 00:02:20]} Rf6 {[%clk 00:09:59]} {[%emt 00:07:18]} 29.
Rc1 {[%clk 00:07:48]} {[%emt 00:01:45]} Rfd6 {[%clk 00:06:38]} {[%emt
00:03:51]} 30. Ne2 {[%clk 00:06:26]} {[%emt 00:01:52]} Ba5 {[%clk 00:06:14]}
{[%emt 00:00:54]} 31. Nf4 {[%clk 00:05:49]} {[%emt 00:01:07]} Qe8 {[%clk
00:05:00]} {[%emt 00:01:44]} 32. Nc4 {[%clk 00:06:01]} {[%emt 00:00:18]} g5
{[%clk 00:04:46]} {[%emt 00:00:44]} 33. Nxd6 {[%clk 00:05:39]} {[%emt
00:00:53]} cxd6 {[%clk 00:04:46]} {[%emt 00:00:30]} 34. Ra3 {[%clk 00:05:04]}
{[%emt 00:01:05]} Bc7 {[%clk 00:03:57]} {[%emt 00:01:19]} 35. Nd5 {[%clk
00:05:16]} {[%emt 00:00:17]} cxd5 {[%clk 00:02:47]} {[%emt 00:01:40]} 36. Qxc7+
{[%clk 00:05:42]} {[%emt 00:00:05]} Ka7 {[%clk 00:02:48]} {[%emt 00:00:28]} 37.
Rb3 {[%clk 00:04:34]} {[%emt 00:01:38]} dxe4 {[%clk 00:02:51]} {[%emt
00:00:28]} 38. Qb6+ {[%clk 00:04:58]} {[%emt 00:00:06]} Ka8 {[%clk 00:03:03]}
{[%emt 00:00:18]} 39. Rxc8+ {[%clk 00:05:22]} {[%emt 00:00:06]} Rxc8 {[%clk
00:03:27]} {[%emt 00:00:06]} 40. Qxb7# {[%clk 00:05:47]} {[%emt 00:00:04]} 1-0